[Event "Mitropa Cup Open 2022"]
[Site "Corte"]
[Date "2022.05.02"]
[Round "3.4"]
[White "Koelle, Tobias"]
[Black "Frank, Adam"]
[Result "1-0"]
[ECO "E71"]
[WhiteElo "2384"]
[BlackElo "2327"]
[Annotator "TA"]
[PlyCount "87"]
[EventDate "2022.04.30"]
[EventType "team-tourn"]
[EventCountry "FRA"]
[SourceTitle "playchess.com"]
[Source "ChessBase"]
[SourceQuality "1"]
[TimeControl "40/5400+30:1800+30"]

{[%evp 15,87,29,35,20,23,19,26,30,31,22,41,32,91,64,103,53,70,0,30,-52,-31,-47,0,0,21,6,0,-11,64,52,87,81,110,105,85,53,212,214,251,221,402,266,261,236,248,259,237,42,38,54,56,59,50,24,72,45,44,44,50,31,66,76,65,58,723,728,12833,12834,12834,718,673,644,447,447]} 1. d4 {[%emt 0:00:04]} Nf6 {[%emt 0:00:06]} 2. c4 {[%emt 0:00:06]} g6 {[%emt 0:00:04]} 3. Nc3 {[%emt 0:00:04]} Bg7 {[%emt 0:00:03]} 4. e4 {[%emt 0:00:08]} d6 {[%emt 0:00:02]} 5. h3 {[%emt 0:00:07]} O-O {[%emt 0:00:03]} 6. Be3 {[%emt 0:00:08]} c6 {[%emt 0:00:03]} 7. Nf3 {[%emt 0:01:30]} e5 {[%emt 0:00:06]} 8. d5 {[%emt 0:02:45]} Na6 {[%emt 0:00:06]} 9. Be2 {[%emt 0:02:06] E90: King's Indian: Classical: Early deviations and 6 h3.} Nh5 {[%emt 0:00:06][%cal Bf6h5,Bh5f4,Bf4e2][%mdl 32] 9...Nh5 scores better than 9...cxd5.} 10. O-O {[%emt 0:11:11]} Nf4 {[%emt 0:00:04]} 11. Re1 {[%emt 0:02:27] White has an edge.} Nxe2+ {[%emt 0:00:10]} 12. Qxe2 {[%emt 0:00:40] [#]} f5 $146 {[%emt 0:00:05]} ({Predecessor:} 12... c5 13. Kh2 f5 14. Bg5 Qe8 15. exf5 gxf5 16. Nh4 h6 17. Bc1 Qf7 18. g3 Kh7 {1-0 (35) Perry,W (2210)-Guerra,R (2247) ICCF email 2018}) 13. Bg5 {[%emt 0:10:59]} Bf6 {[%emt 0:09:17]} (13... Qd7 $14) 14. Bh6 $16 {[%emt 0:02:22]} Rf7 {[%emt 0:14:25] [#]} 15. exf5 {[%emt 0:01:20]} (15. dxc6 $1 $16 {And now Rad1 would win.} bxc6 16. exf5 gxf5 17. Rad1) 15... gxf5 $14 {[%emt 0:03:10]} 16. Nh2 {[%emt 0:07:12] White is more active.} (16. dxc6 $14 bxc6 17. Rad1) 16... Nc5 {[%emt 0:19:02]} 17. Kh1 {[%emt 0:18:41]} ({White should play} 17. Rad1 $11) 17... e4 $15 {[%emt 0:08:01]} 18. Rad1 {[%emt 0:09:49]} Be5 {[%emt 0:04:03] Inhibits Bf4.} (18... Bxc3 $15 19. bxc3 Qh4) 19. f4 $36 {[%emt 0:02:32][%mdl 2048] Black is under pressure.} Bg7 {[%emt 0:03:47]} 20. Bxg7 {[%emt 0:02:20]} Rxg7 {[%emt 0:00:12]} 21. Rg1 {[%emt 0:05:18]} Qh4 {[%emt 0:21:39]} (21... Kh8 $11) 22. b4 $1 $14 {[%emt 0:01:35]} Nd7 {[%emt 0:02:43]} (22... Nd3 $2 23. Rxd3 Bd7 24. Re3 $18) 23. dxc6 {[%emt 0:01:51]} bxc6 {[%emt 0:00:04]} 24. Rxd6 {[%emt 0:01:06]} Qxf4 {[%emt 0:00:46]} 25. c5 {[%emt 0:00:47] Black must now prevent Qc4+.} Qg3 $2 {[%emt 0:06:07]} ({Better is} 25... Kh8 $14) 26. Qc4+ $18 {[%emt 0:03:21]} Kh8 {[%emt 0:00:05]} 27. Qd4 {[%emt 0:00:14] Threatens to win with Ne2.} Nf8 $2 {[%emt 0:04:12]} (27... Qd3) 28. Rd8 {[%emt 0:00:45][%cal Rd8f8]} Bb7 {[%emt 0:00:03]} 29. Rxa8 {[%emt 0:02:00] Chess con chili.} Bxa8 {[%emt 0:00:03] [#]} 30. Qd8 $1 {[%emt 0:02:13][%csl LRa8,LRf8]} Kg8 {[%emt 0:01:58] [#]} 31. Ne2 {[%emt 0:02:19]} (31. Nxe4 $1 $18 {[%mdl 512]} fxe4 32. Qxa8) 31... Qe3 $14 {[%emt 0:01:14]} 32. Qxa8 {[%emt 0:00:32]} Qxe2 {[%emt 0:00:04]} 33. Qxc6 {[%emt 0:00:16]} Qxa2 {[%emt 0:00:35]} 34. Nf1 {[%emt 0:06:13]} Qb3 {[%emt 0:01:50]} (34... Qe6 $11 {is superior.} 35. Qxe6+ Nxe6) 35. Qc8 {[%emt 0:01:02]} Rf7 {[%emt 0:02:24]} 36. Qb8 {[%emt 0:00:38]} Qc3 {[%emt 0:00:56]} 37. Ng3 {[%emt 0:00:55] Strongly threatening Ne2.} a5 {[%emt 0:00:26]} 38. bxa5 {[%emt 0:00:30]} Qxc5 {[%emt 0:00:20]} 39. a6 {[%emt 0:00:38]} Qd4 {[%emt 0:00:27][%mdl 8192] [#] Against Ra1} (39... Qa3 $14) 40. Nxf5 $1 {[%emt 0:00:27][%mdl 512] White is clearly winning.} Rxf5 {[%emt 0:01:08]} (40... Qf6 41. Nd6) 41. a7 {[%emt 0:30:28]} Ra5 {[%emt 0:30:05]} 42. a8=Q {[%emt 0:00:08]} (42. Rf1 $142 Qc5 43. a8=Q Rxa8 44. Qxa8) 42... Rxa8 $18 {[%emt 0:00:02]} 43. Qxa8 {[%emt 0:00:07] aiming for Rf1.} Kg7 {[%emt 0:00:00]} 44. Re1 {[%emt 0:00:00] Weighted Error Value: White=0.33/Black=0.32} ({Don't play} 44. Rf1 Ng6 45. Re1 Kh6 $18) 1-0

[Event "Mitropa Cup Open 2022"]
[Site "Corte"]
[Date "2022.05.03"]
[Round "4.1"]
[White "Baenziger, Fabian"]
[Black "Moussard, Jules"]
[Result "0-1"]
[ECO "E43"]
[WhiteElo "2429"]
[BlackElo "2630"]
[Annotator "TA"]
[PlyCount "160"]
[EventDate "2022.04.30"]
[EventType "team-tourn"]
[EventCountry "FRA"]
[SourceTitle "playchess.com"]
[Source "ChessBase"]
[SourceQuality "1"]
[TimeControl "40/5400+30:1800+30"]

{[%evp 18,160,15,12,31,30,29,15,22,17,32,29,31,26,16,33,41,2,12,0,13,0,12,0,24,18,83,76,92,106,94,93,96,86,97,97,95,93,95,55,56,54,42,13,33,0,0,-10,0,0,0,0,0,-3,-12,-8,16,12,26,0,0,0,0,-60,-41,-41,-41,-41,-41,-41,-41,-41,-41,-41,-44,-44,-52,-104,-60,-219,-162,-232,-243,-243,-181,-243,-243,-331,-320,-317,-300,-251,-259,-234,-227,-243,-144,-151,-175,-345,-368,-319,-354,-347,-328,-326,-149,-314,-310,-302,-303,-303,-8,-8,0,0,0,-8,-8,-8,-11,-8,-8,-16,-16,-59,-62,-1145,-576,-7395,-707,-29968,-29969,-29972,-29974,-29974,-29975,-29975,-29976,-29976,-29977,-29977,-29978,-29977,-29978]} 1. d4 {[%emt 0:00:03]} Nf6 {[%emt 0:00:09]} 2. c4 {[%emt 0:00:10]} e6 {[%emt 0:00:16]} 3. Nc3 {[%emt 0:00:22]} Bb4 {[%emt 0:00:07]} 4. e3 {[%emt 0:00:23]} O-O {[%emt 0:00:39]} 5. Bd3 {[%emt 0:00:21]} c5 {[%emt 0:00:46]} 6. Nf3 {[%emt 0:00:52]} b6 {[%emt 0:00:13]} 7. O-O {[%emt 0:04:32]} Bb7 {[%emt 0:00:42]} 8. Na4 {[%emt 0:02:18]} cxd4 {[%emt 0:00:40]} 9. a3 {[%emt 0:00:06]} Be7 {[%emt 0:01:54]} 10. exd4 {[%emt 0:00:06]} Re8 {[%emt 0:00:35] E43: Nimzo-Indian: Rubinstein: 4...b6.} 11. Nc3 {[%emt 0:08:10]} d6 {[%emt 0:04:00]} 12. Re1 {[%emt 0:04:33]} Nbd7 {[%emt 0:01:17] The position is equal.} 13. Bf4 {[%emt 0:08:16]} a6 {[%emt 0:05:17]} 14. h3 {[%emt 0:06:55] [#]} Rc8 $146 {[%emt 0:03:59]} ({Predecessor:} 14... Ra7 15. Bg3 Qa8 16. d5 exd5 17. cxd5 Nxd5 18. Ne4 N5f6 19. Nxd6 Bxd6 20. Bxd6 Rxe1+ 21. Nxe1 {1-0 (68) Lukacs,P (2500)-Vegh,E (2375) Budapest 1987}) 15. Bh2 {[%emt 0:04:41]} Qc7 {[%emt 0:02:59]} 16. b4 {[%emt 0:12:41]} Qb8 {[%emt 0:00:53]} 17. Re3 {[%emt 0:06:05]} Qa8 {[%emt 0:02:54]} 18. Qe2 {[%emt 0:04:35]} Bf8 {[%emt 0:02:34]} 19. Re1 {[%emt 0:02:53]} g6 {[%emt 0:12:02]} 20. Ng5 Bh6 {[%emt 0:17:09]} (20... Bxg2 21. f3 $16) 21. h4 $36 {[%emt 0:05:44][%mdl 2048] White has the initiative.} Bf8 {[%emt 0:00:09]} (21... e5 $1 $11 22. dxe5 Nxe5) 22. Nge4 $16 {[%emt 0:07:29]} Nxe4 {[%emt 0:11:42]} 23. Nxe4 {[%emt 0:00:09]} (23. Bxe4 $6 Bxe4 24. Nxe4 d5 25. cxd5 exd5 $11) 23... Bxe4 {[%emt 0:00:55]} 24. Bxe4 {[%emt 0:07:58]} (24. Rxe4 h5 $14) 24... Qa7 {[%emt 0:00:04]} 25. h5 {[%emt 0:01:20]} Nf6 {[%emt 0:00:20]} 26. hxg6 {[%emt 0:01:35]} hxg6 {[%emt 0:00:02]} 27. Bd3 {[%emt 0:00:26]} a5 {[%emt 0:00:34]} 28. Qf3 {[%emt 0:05:06]} Qe7 {[%emt 0:01:40]} 29. bxa5 {[%emt 0:04:55]} bxa5 {[%emt 0:00:49]} 30. Rb1 {[%emt 0:00:04]} Bg7 {[%emt 0:02:11]} 31. Rb6 {[%emt 0:01:17]} Red8 {[%emt 0:02:17]} 32. Qf4 {[%emt 0:01:27]} d5 {[%emt 0:05:06]} 33. c5 {[%emt 0:00:48]} Ne4 {[%emt 0:00:05] Against Qg5} 34. Bxe4 {[%emt 0:00:22]} dxe4 {[%emt 0:00:05]} (34... Bxd4 35. Bxg6 $1 Bxe3 36. Qxe3 fxg6 37. Rxe6 $18) 35. Qxe4 {[%emt 0:00:41]} (35. Rxe4 $2 Qxc5 $3 {[%mdl 512]} 36. Rb1 Qxa3 $19) 35... Rxd4 {[%emt 0:00:40]} 36. Bd6 {[%emt 0:00:19]} Qd8 {[%emt 0:06:31]} 37. Qf3 {[%emt 0:00:27]} Rd5 {[%emt 0:00:25]} 38. Rb7 {[%emt 0:00:33][%cal Bb6b7,Bb7d7,Bd7d8][%mdl 32]} (38. g4 $5 {[%cal Rb6b7]}) 38... Rf5 {[%emt 0:00:56]} 39. Qe4 {[%emt 0:00:03]} Bf8 {[%emt 0:00:38]} 40. Bxf8 {[%emt 0:01:11]} (40. g4 $11 Bxd6 41. gxf5 Bxc5 42. Rg3 (42. fxg6 $2 Qg5+ 43. Kh2 Bd6+ 44. Kh3 Rc1 $19)) 40... Qxf8 {[%emt 0:00:22]} 41. c6 {[%emt 0:05:16]} Qd6 {[%emt 0:10:06]} 42. Rd7 $1 {[%emt 0:04:20]} Qxc6 {[%emt 0:01:07]} 43. Rd8+ {[%emt 0:00:43]} Kh7 {[%emt 0:01:47] Strongly threatening ...Qxe4.} 44. Rh3+ {[%emt 0:03:41]} Kg7 {[%emt 0:00:19]} 45. Qd4+ {[%emt 0:00:12]} e5 $1 {[%emt 0:01:31] Chess con chili.} 46. Rxc8 {[%emt 0:00:27]} Qxc8 $15 {[%emt 0:00:05][%mdl 4096] Endgame KQR-KQR} 47. Qe3 {[%emt 0:03:50]} (47. Qd2 $15) 47... Qc2 {[%emt 0:05:10]} 48. Qh6+ $2 {[%emt 0:02:41]} ({Better is} 48. f3 $15) 48... Kf6 $19 {[%emt 0:00:05]} 49. Qh4+ {[%emt 0:02:04]} (49. Qe3 $142) 49... Ke6 $1 {[%emt 0:01:14]} 50. Qg3 {[%emt 0:03:36]} Qc1+ {[%emt 0:05:19]} 51. Kh2 {[%emt 0:00:30]} Qf4 {[%emt 0:00:34]} 52. Qxf4 {[%emt 0:00:07]} Rxf4 {[%emt 0:00:05] KR-KR} ({Weaker is} 52... exf4 53. Rc3 $17) 53. Kg1 {[%emt 0:00:04]} Kd5 {[%emt 0:00:35]} 54. Rb3 {[%emt 0:01:38]} a4 {[%emt 0:06:25]} 55. Rb5+ {[%emt 0:00:58]} Ke6 {[%emt 0:01:22]} 56. Rb7 {[%emt 0:02:17]} g5 {[%emt 0:00:51]} (56... Rc4 $19 {Threatens to win with ...Rc3.} 57. Ra7 f5) 57. Ra7 $17 {[%emt 0:01:12]} g4 {[%emt 0:00:06]} 58. Ra6+ $2 {[%emt 0:01:10] [#]} (58. g3 Rc4 59. Kf1) 58... Kf5 $1 $19 {[%emt 0:00:23]} 59. Ra7 {[%emt 0:01:23]} f6 {[%emt 0:00:11]} 60. Ra6 {[%emt 0:00:02]} Kg5 {[%emt 0:02:18]} 61. g3 {[%emt 0:01:53]} Re4 {[%emt 0:00:51]} (61... Rc4 $19 {is more deadly. aiming for ...Kg6.} 62. Kf1 Kf5) 62. Kg2 $2 {[%emt 0:00:05] [#]} (62. Kf1 $17) 62... Kf5 $1 {[%emt 0:05:00]} 63. Rb6 {[%emt 0:01:26]} Rd4 {[%emt 0:00:41]} 64. Ra6 {[%emt 0:00:04]} Ke4 $2 {[%emt 0:00:51]} (64... Rc4 $19 {White must now prevent ...Rd4.} 65. Kg1 Ke4) 65. Rxf6 $11 {[%emt 0:00:30]} Rd3 {[%emt 0:00:03]} 66. Rg6 {[%emt 0:00:41]} Kf5 {[%emt 0:00:04]} ({Don't play} 66... Rxa3 67. Rxg4+ Kd5 68. Rb4 $15) 67. Rg8 $1 {[%emt 0:00:17]} Rxa3 {[%emt 0:00:16]} 68. Rf8+ {[%emt 0:00:20]} Ke4 {[%emt 0:05:16]} 69. Rg8 {[%emt 0:00:04]} Kd3 {[%emt 0:00:06]} 70. Rxg4 {[%emt 0:00:09]} e4 {[%emt 0:00:02] And now ...Ra2 would win.} 71. Rg8 {[%emt 0:00:36]} Rb3 {[%emt 0:00:06]} 72. Ra8 $2 {[%emt 0:03:22][%mdl 8192]} (72. g4 $15) 72... a3 $19 {[%emt 0:00:01] ...Kc2 is the strong threat.} 73. Ra4 {[%emt 0:00:39]} Kc3 {[%emt 0:02:09]} (73... Kc2 $142 74. g4 e3 75. fxe3 Kb2) 74. Rxe4 {[%emt 0:00:42]} a2 {[%emt 0:00:02] Black mates.} 75. Ra4 {[%emt 0:00:32]} Kb2 {[%emt 0:00:03]} 76. Rxa2+ {[%emt 0:00:13]} Kxa2 {[%emt 0:00:01]} 77. Kh3 {[%emt 0:00:41]} Rf3 {[%emt 0:04:26]} 78. Kg2 {[%emt 0:00:32]} Rc3 {[%emt 0:00:17]} 79. Kh3 {[%emt 0:00:02]} Kb3 {[%emt 0:00:42]} 80. Kg4 {[%emt 0:00:51]} Kc4 {[%emt 0:00:04] Weighted Error Value: White=0.21 (precise) /Black=0.09 (flawless)} 0-1

[Event "Mitropa Cup Open 2022"]
[Site "Corte"]
[Date "2022.05.03"]
[Round "4.2"]
[White "Maurizzi, Marc Andria"]
[Black "Pelletier, Yannick"]
[Result "1-0"]
[ECO "B12"]
[WhiteElo "2489"]
[BlackElo "2555"]
[Annotator "TA"]
[PlyCount "66"]
[EventDate "2022.04.30"]
[EventType "team-tourn"]
[EventCountry "FRA"]
[SourceTitle "playchess.com"]
[Source "ChessBase"]
[SourceQuality "1"]
[TimeControl "40/5400+30:1800+30"]

{[%evp 11,66,20,27,30,29,28,44,31,92,77,126,122,121,96,107,108,129,116,128,110,110,105,113,91,90,98,127,121,131,115,163,164,158,142,145,134,129,121,121,133,143,156,165,66,210,213,312,285,346,339,456,437,426,439,420,341,264]} 1. e4 {[%emt 0:00:02]} c6 {[%emt 0:00:15]} 2. d4 {[%emt 0:00:21]} d5 {[%emt 0:00:09]} 3. e5 {[%emt 0:00:05]} Bf5 {[%emt 0:00:25]} 4. Nf3 {[%emt 0:00:31]} e6 {[%emt 0:00:15]} 5. Be2 {[%emt 0:00:03]} Ne7 {[%emt 0:01:41]} 6. O-O {[%emt 0:03:12]} h6 {[%emt 0:00:08]} 7. Nbd2 {[%emt 0:03:58] B12: Caro-Kann: Advance Variation.} Nd7 {[%emt 0:00:18]} 8. c3 {[%emt 0:01:21]} c5 {[%emt 0:16:00]} 9. dxc5 {[%emt 0:03:48] White is slightly better.} Nc6 {[%emt 0:00:16] [#]} (9... Nxc5 $14 10. Nd4 Nd7) 10. b4 $1 $16 {[%emt 0:05:18]} Ncxe5 {[%emt 0:22:29]} (10... Be7 $142) 11. Nxe5 {[%emt 0:08:28]} Nxe5 {[%emt 0:00:04] [#]} 12. Qa4+ $146 {[%emt 0:04:25]} ({Predecessor:} 12. Bb5+ Nc6 13. Nf3 a6 14. Bxc6+ bxc6 15. Nd4 Qf6 16. Qa4 Rc8 17. Nxc6 Bd3 18. Na7+ {1-0 (43) Dobroselskiy,V-Llano,J ICCF email 2019}) 12... Nd7 {[%emt 0:01:40]} 13. Nb3 {[%emt 0:05:16]} Bc2 {[%emt 0:17:32]} 14. Be3 {[%emt 0:16:30]} Be7 {[%emt 0:03:11]} 15. Rac1 {[%emt 0:00:31]} Bxb3 {[%emt 0:01:39]} 16. Qxb3 {[%emt 0:00:15]} O-O {[%emt 0:04:02]} 17. c4 {White is more active.} dxc4 {[%emt 0:02:34]} 18. Qxc4 {[%emt 0:03:39]} Qc7 {[%emt 0:00:52]} 19. Bf4 {[%emt 0:03:04]} e5 {[%emt 0:01:03]} 20. Be3 {[%emt 0:01:08]} Bg5 {[%emt 0:06:15]} (20... Rad8 $16) 21. Bxg5 $18 {[%emt 0:03:00]} hxg5 {[%emt 0:00:03]} 22. Qg4 {[%emt 0:00:54]} a5 {[%emt 0:00:03] [#]} 23. a3 {[%emt 0:03:23]} ({Much worse is} 23. Qxg5 $6 axb4 24. Rc4 Nf6 $11) 23... axb4 {[%emt 0:00:04]} 24. axb4 {[%emt 0:00:03]} Ra4 {[%emt 0:02:56]} 25. Rc4 {[%emt 0:05:34]} Nf6 {[%emt 0:04:20]} 26. Qxg5 {[%emt 0:00:48]} Rd8 {[%emt 0:00:02]} 27. Bf3 {[%emt 0:04:26]} ({White should play} 27. Rfc1 $18) 27... b6 {[%emt 0:02:54] This costs Black the game.} (27... b5 $1 $14 28. Rc2 (28. Rh4 e4 $14) 28... Rxb4) 28. c6 {[%emt 0:04:07]} b5 {[%emt 0:00:56]} (28... Re8 $142 29. Qg3 Ra3) 29. Rh4 {[%emt 0:00:16]} Qd6 {[%emt 0:08:45]} 30. Qg3 {[%emt 0:03:24]} Qe6 {[%emt 0:02:56]} 31. c7 {[%emt 0:07:08] White wants to mate with Qh3.} Rc8 {[%emt 0:00:18]} 32. Rd1 {[%emt 0:04:14] Qh3 is the strong threat.} Rxc7 {[%emt 0:00:45]} 33. Rd8+ {[%emt 0:00:10]} Ne8 {[%emt 0:00:03] Weighted Error Value: White=0.06 (flawless) /Black=0.28 (precise)} 1-0

[Event "Mitropa Cup Open 2022"]
[Site "Corte"]
[Date "2022.05.03"]
[Round "4.3"]
[White "Gaehwiler, Gabriel"]
[Black "Boyer, Mahel"]
[Result "1/2-1/2"]
[ECO "D30"]
[WhiteElo "2421"]
[BlackElo "2438"]
[Annotator "TA"]
[PlyCount "86"]
[EventDate "2022.04.30"]
[EventType "team-tourn"]
[EventCountry "FRA"]
[SourceTitle "playchess.com"]
[Source "ChessBase"]
[SourceQuality "1"]
[TimeControl "40/5400+30:1800+30"]

{[%evp 9,86,0,0,10,14,-6,0,0,0,0,0,-8,-8,0,-8,-3,-9,-6,-14,-11,-12,-12,0,0,0,-24,-9,-42,0,-52,-31,-53,-62,-39,-34,-54,-32,-48,-46,-33,-56,-65,0,-123,-123,-123,-123,-123,-115,-123,-110,-114,-115,-116,-116,-161,-160,-303,-267,-241,-241,-474,-474,-474,-474,-470,-474,-463,-445,-358,-220,-442,-447,-405,-398,-768,-736,-731,-575]} 1. d4 {[%emt 0:00:04]} d5 {[%emt 0:02:30]} 2. Nf3 {[%emt 0:03:07]} e6 {[%emt 0:01:20]} 3. c4 {[%emt 0:01:39]} a6 {[%emt 0:00:55]} 4. b3 {[%emt 0:10:14]} Nf6 {[%emt 0:02:59]} 5. g3 {[%emt 0:02:05]} dxc4 {[%emt 0:03:17]} 6. bxc4 {[%emt 0:00:16] D30: Queen's Gambit Declined: Systems without Nc3.} c5 {[%emt 0:00:23] [#]} 7. e3 $146 {[%emt 0:17:58]} ({Predecessor:} 7. Bb2 Nc6 8. Bg2 cxd4 9. Nxd4 Bb4+ 10. Kf1 O-O 11. Qd3 Nxd4 12. Qxd4 Qxd4 13. Bxd4 {1-0 (32) Chu,R (2207)-Kairbekova,A (2132) Chess.com INT 2021}) 7... cxd4 {[%emt 0:09:29]} 8. exd4 {[%emt 0:02:23] The position is equal.} Bb4+ {[%emt 0:10:30]} 9. Bd2 {[%emt 0:02:59]} Bxd2+ {[%emt 0:00:23]} 10. Nbxd2 {[%emt 0:05:12]} Nc6 {[%emt 0:02:57]} 11. Nb3 {[%emt 0:00:29]} a5 {[%emt 0:00:31][%cal Ba6a5,Ba5a4][%mdl 32]} 12. Bg2 {[%emt 0:05:51]} a4 {[%emt 0:00:02]} 13. Nc1 {[%emt 0:03:34]} (13. Nc5 Qa5+ 14. Qd2 {[#]} Nxd4 $1 15. Nxd4 Qxc5 $15) 13... Qa5+ {[%emt 0:03:36]} 14. Qd2 {[%emt 0:01:28]} O-O {[%emt 0:01:06]} 15. Ne2 {[%emt 0:09:26]} Rd8 {[%emt 0:09:11]} 16. Qxa5 {[%emt 0:05:27]} Nxa5 {[%emt 0:00:15]} 17. c5 {[%emt 0:04:38]} b6 {[%emt 0:07:48]} (17... Nd5 $5 {[%cal Rb7b6]}) 18. cxb6 {[%emt 0:11:46]} (18. Ne5 $5 {[%cal Rg2a8]} Nd5 19. Rc1 $11) 18... Rb8 {[%emt 0:03:37]} 19. Rb1 {[%emt 0:03:54]} (19. Nc3 $11) 19... Nd5 {[%emt 0:00:24]} 20. Ne5 {[%emt 0:03:52]} Ba6 {[%emt 0:00:21] Inhibits Rb5.} (20... Rxb6 21. Kd2 $14) 21. Bxd5 {[%emt 0:01:00]} Rxd5 {[%emt 0:00:08]} 22. Rb4 $1 {[%emt 0:01:34]} f6 {[%emt 0:00:49]} 23. Nc3 $1 {[%emt 0:01:27]} Rd6 {[%emt 0:02:41]} (23... Rdd8 {feels hotter.} 24. Rxa4 Rxb6 25. Rxa5 fxe5 26. Kd2 Rxd4+ 27. Kc2 Bd3+) 24. Rxa4 {[%emt 0:00:43]} fxe5 {[%emt 0:01:54]} 25. Rxa5 {[%emt 0:00:09]} ({But not} 25. dxe5 Rc6 26. Rxa5 Rbxb6 $17) 25... Rdxb6 {[%emt 0:01:42]} (25... Rbxb6 $15 26. Kd2 (26. Rxe5 Rxd4 27. Re3 Rb2 $17) (26. dxe5 Rd3 $17) 26... Rxd4+ 27. Kc2 Bd3+ 28. Kc1 Rc6) 26. dxe5 {[%emt 0:01:16]} (26. Kd2 $1 $11) 26... Rc6 $17 {[%emt 0:03:29] Black continues to play with concentration.} 27. Rxa6 {[%emt 0:00:44]} Rxa6 {[%emt 0:00:04][%mdl 4096] Endgame KRR-KRN} 28. O-O {[%emt 0:00:37]} Rc8 {[%emt 0:00:23]} 29. Ne4 {[%emt 0:00:21]} Rxa2 {[%emt 0:00:07]} 30. Ng5 {[%emt 0:00:37]} Re8 {[%emt 0:00:04]} 31. f4 {[%emt 0:00:33]} h6 {[%emt 0:00:02][%cal Bh7h6,Bh6g5][%mdl 32]} 32. Ne4 {[%emt 0:00:18]} Rc8 {[%emt 0:00:28] White must now prevent ...Rc4.} 33. Nf2 {[%emt 0:00:45]} (33. Rf2 $17 Rxf2 34. Nxf2) 33... Rcc2 $19 {[%emt 0:00:07] Hoping for ...g5.} 34. Kg2 {[%emt 0:00:11]} Ra3 {[%emt 0:00:24]} 35. Rd1 $2 {[%emt 0:00:40]} (35. Kh3) 35... g5 {[%emt 0:00:28]} 36. fxg5 {[%emt 0:00:28]} hxg5 {[%emt 0:00:01]} 37. Kg1 {[%emt 0:00:31]} Raa2 {[%emt 0:00:03]} 38. Ng4 {[%emt 0:00:42]} Kg7 {[%emt 0:00:02]} 39. Rf1 {[%emt 0:00:26]} Rc4 {[%emt 0:01:29]} 40. Nf6 {[%emt 0:00:23]} (40. Nf2 {only move.}) 40... Kg6 {[%emt 0:01:32]} 41. Re1 {[%emt 0:19:09]} Kf5 {[%emt 0:04:49]} 42. h3 $2 {[%emt 0:01:33]} (42. Rf1+ Kxe5 43. Nd7+ Kd6 44. Nf6) 42... Rcc2 {[%emt 0:03:46] [#] ...Rg2+ is the strong threat.} 43. Ng4 {[%emt 0:01:29]} Rg2+ {[%emt 0:00:46][%mdl 32768] Weighted Error Value: White=0.37/Black=0.09 (flawless) . An unexpected result.} 1/2-1/2

[Event "Mitropa Cup Open 2022"]
[Site "Corte"]
[Date "2022.05.03"]
[Round "4.4"]
[White "Loiseau, Quentin"]
[Black "Gallagher, Joseph G."]
[Result "1/2-1/2"]
[ECO "B97"]
[WhiteElo "2462"]
[BlackElo "2441"]
[Annotator "TA"]
[PlyCount "79"]
[EventDate "2022.04.30"]
[EventType "team-tourn"]
[EventCountry "FRA"]
[SourceTitle "playchess.com"]
[Source "ChessBase"]
[SourceQuality "1"]
[TimeControl "40/5400+30:1800+30"]

{[%evp 16,79,53,27,22,22,80,43,43,31,58,0,0,0,0,1,71,69,62,62,201,187,199,192,226,28,24,16,19,24,26,16,24,7,7,8,4,6,8,8,8,8,12,10,10,0,3,0,7,10,12,12,22,3,3,3,3,3,3,0,0,0,0,0,0,0]} 1. e4 {[%emt 0:00:08]} c5 {[%emt 0:00:13]} 2. Nf3 {[%emt 0:00:37]} d6 {[%emt 0:00:42]} 3. d4 {[%emt 0:00:05]} cxd4 {[%emt 0:00:04]} 4. Nxd4 {[%emt 0:00:06]} Nf6 {[%emt 0:00:17]} 5. Nc3 {[%emt 0:00:06]} a6 {[%emt 0:01:02]} 6. Bg5 {[%emt 0:00:08]} Nc6 {[%emt 0:06:24]} 7. f4 {[%emt 0:04:47]} Qb6 {[%emt 0:09:38]} 8. Nb3 {[%emt 0:00:54]} e6 {[%emt 0:02:17]} 9. Qf3 {[%emt 0:02:03]} Be7 $1 {[%emt 0:06:12] B97: Sicilian Najdorf: Poisoned Pawn.} 10. O-O-O {[%emt 0:01:00]} Bd7 {[%emt 0:01:59]} (10... Qc7 $1 $11) 11. g4 {[%emt 0:06:43]} h6 {[%emt 0:08:59] White is slightly better.} 12. Bh4 {[%emt 0:07:13]} g5 {[%emt 0:12:13] [#]} 13. e5 $146 {[%emt 0:23:41]} ({Predecessor:} 13. Bf2 Qc7 14. e5 dxe5 15. fxe5 Nxe5 16. Qe2 Ng6 17. Rd4 Nf4 18. Qd1 b5 19. a3 {0-1 (34) Boabaid,J (1842)-Gamarra,R (1925) Foz do Iguacu 2018}) 13... dxe5 $11 {[%emt 0:14:57]} (13... gxh4 14. exf6) 14. fxg5 {[%emt 0:01:38]} hxg5 {[%emt 0:21:18]} 15. Bxg5 {[%emt 0:18:26]} Nd4 {[%emt 0:02:36]} 16. Nxd4 $1 $16 {[%emt 0:02:36]} exd4 {[%emt 0:00:05]} 17. Bxf6 {[%emt 0:01:45]} Bc6 {[%emt 0:02:54] [#]} 18. Qf2 $1 $18 {[%emt 0:02:13][%mdl 512]} Bxf6 {[%emt 0:00:08] [#]} 19. Qxf6 {[%emt 0:00:12]} Rg8 {[%emt 0:01:36] [#]} (19... Rf8 20. Bb5) 20. Na4 {[%emt 0:08:21]} Qd8 $11 {[%emt 0:01:19]} 21. Qxd8+ {[%emt 0:13:13]} Rxd8 {[%emt 0:00:10]} 22. Rg1 {[%emt 0:00:40] Threatens to win with Nc5.} Bxa4 {[%emt 0:00:03]} 23. h4 {[%emt 0:00:04]} Bc6 {[%emt 0:00:10]} 24. g5 {[%emt 0:00:20]} Rh8 {[%emt 0:02:05] The position is equal.} 25. g6 {[%emt 0:02:08]} fxg6 {[%emt 0:00:09]} 26. Rxg6 {[%emt 0:00:35]} Rxh4 {[%emt 0:01:07]} 27. Rxe6+ {[%emt 0:00:11]} Kd7 {[%emt 0:00:11]} 28. Rf6 {[%emt 0:01:30]} Kc7 {[%emt 0:00:05]} 29. Bd3 {[%emt 0:01:06]} a5 {[%emt 0:01:40]} 30. a3 {[%emt 0:01:03]} Rd6 {[%emt 0:00:18]} 31. Rf2 {[%emt 0:00:10]} Kb6 {[%emt 0:00:29]} 32. b3 {[%emt 0:00:24]} Kc5 {[%emt 0:00:36]} 33. Kb2 {[%emt 0:00:05]} Rh1 {[%emt 0:01:39]} 34. Rf5+ {[%emt 0:00:30]} Rd5 {[%emt 0:00:13]} 35. Rxh1 {[%emt 0:01:25]} Rxf5 {[%emt 0:00:02]} 36. Rh4 {[%emt 0:00:26]} Re5 {[%emt 0:00:08]} 37. b4+ {[%emt 0:01:08]} axb4 {[%emt 0:00:07]} 38. axb4+ {[%emt 0:00:03]} Kxb4 {[%emt 0:00:11]} 39. Rxd4+ {[%emt 0:00:05]} Kc5 {[%emt 0:00:12]} 40. Rf4 {[%emt 0:00:04] Weighted Error Value: White=0.18 (very precise) /Black=0.15 (very precise)} 1/2-1/2